Cogmind - Beta 16 @@@ ROGUE MODE // 2025.12.03 @ 18:24:42 Player: Prakos Result: Self-destructed Performance ------------- Evolutions (2) 1000 Regions Visited (6) 1200 Robots Destroyed (16) 80 Value Destroyed (738) 738 Prototype IDs (24) 480 Alien Tech Used (0) 0 Bonus (500) 500 TOTAL SCORE: 3998 Bonus ------- Entered Garrisons 200 Aligned with FarCom 300 Cogmind --------- Core Integrity 155/550 Matter 300/300 Energy 250/250 System Corruption 0% Temperature Cool (0) Movement Flying (175) Ox2 Location -8/Garrison Parts ------- > --- POWER (1) -------- Ion Engine > --- PROPULSION (4) --- Improved VTOL Module > --- UTILITY (4) ------ Small Storage Unit > --- WEAPON (2) ------- Mace > --- INVENTORY (8) ---- Deuterium Engine Scrap Suit Large Storage Unit Medium Matter Pod (100) Relay Coupler [Sentry] (22) Longsword +1 Peak State ------------ > --- POWER ------------ Improved Ion Engine > --- PROPULSION ------- Aluminum Leg Aluminum Leg Airjet Improved VTOL Module > --- UTILITY ---------- Heat Sink Heat Sink Small Storage Unit > --- WEAPON ----------- High-powered Shotgun Mace > --- INVENTORY -------- Ion Engine Scrap Suit Large Storage Unit Medium Battery Medium Matter Pod Assault Rifle Longsword +1 [Rating: 21] Favorites ----------- Power Ion Engine Engine Ion Engine Propulsion Aluminum Leg Treads Light Treads Leg Aluminum Leg Hover Unit Airjet Flight Unit Improved VTOL Module Utility Small Storage Unit Device Heat Sink Storage Small Storage Unit Weapon Assault Rifle Energy Gun Medium Laser Ballistic Gun Assault Rifle Impact Weapon Mace Build | -11 -10 -10 -10 -9 -8 -8 ------- Run | Yrd Mat Min Exi Min Mat Gar Slots Evolved 4 | . . . . . 4 . Power . | . . . . . . . Propulsion 2 | . . . . . 2 . Utility 2 | . . . . . 2 . Weapon . | . . . . . . . Parts Attached 17 | 6 . . . 1 8 2 Power 4 | 1 . . . . 2 1 Engine 4 | 1 . . . . 2 1 Core . | . . . . . . . Reactor . | . . . . . . . Propulsion 5 | 2 . . . . 2 1 Treads 1 | . . . . . . 1 Leg 2 | 2 . . . . . . Wheel . | . . . . . . . Hover 1 | . . . . . 1 . Flight 1 | . . . . . 1 . Utility 3 | 1 . . . 1 1 . Device 2 | . . . . 1 1 . Storage 1 | 1 . . . . . . Processor . | . . . . . . . Hackware . | . . . . . . . Protection . | . . . . . . . Artifact . | . . . . . . . Weapon 5 | 2 . . . . 3 . Energy Gun 1 | 1 . . . . . . Energy Cannon . | . . . . . . . Ballistic Gun 3 | 1 . . . . 2 . Ballistic Cannon . | . . . . . . . Launcher . | . . . . . . . Special Weapon . | . . . . . . . Impact Weapon 1 | . . . . . 1 . Slashing Weapon . | . . . . . . . Piercing Weapon . | . . . . . . . Special Melee Weapon . | . . . . . . . Unidentified Prototypes 1 | . . . . . 1 . Parts Lost 9 | . . . . . 2 7 Power 1 | . . . . . . 1 Propulsion 4 | . . . . . 1 3 Utility 2 | . . . . . . 2 Weapon 2 | . . . . . 1 1 Highest Loss Streak 5 | . . . . . 2 5 To Critical Strikes . | . . . . . . . Average Backups 4 | . 1 1 2 3 6 6 Power 1 | . 1 1 1 1 1 1 Propulsion . | . . . . . . . Utility 2 | . . . 1 1 3 3 Weapon . | . . . . 1 1 1 Tool/Special . | . . . . . . . Unused Backups 6 | . . . . . 1 5 Power . | . . . . . . . Propulsion . | . . . . . . . Utility 5 | . . . . . 1 4 Weapon 1 | . . . . . . 1 Tool/Special . | . . . . . . . Average Slot Usage (%) 83 | . 85 85 85 86 84 81 Engine 11 | . 14 14 14 14 9 8 Leg 22 | . 28 28 28 28 18 17 Hover 1 | . . . . . 5 . Flight 4 | . . . . . 8 8 Device 8 | . . . . 1 16 17 Storage 11 | . 14 14 14 14 9 9 Energy Gun 6 | . 14 14 14 14 . . Ballistic Gun 11 | . 14 14 14 14 10 7 Impact Weapon 4 | . . . . . 7 9 Peak Build Rating 21 | 6 6 6 7 9 21 18 Average Rating 12 | 4 6 6 6 7 18 16 On Entrance 7 | . 6 6 6 7 9 17 Avg Prop Armor Cover (%) 4 | . . . . . 4 4 Naked Turns . | . . . . . . . Heaviest Build 21 | 14 14 14 14 15 21 19 Greatest Support 20 | 20 20 20 20 20 20 20 Greatest Overweight (x) 2 | . . . . . 1 2 Average Overweight (x) . | . . . . . . . Largest Inventory Capacity 8 | 8 8 8 8 8 8 8 Average Capacity 7 | 6 8 8 8 8 8 8 Most Carried 8 | 1 1 2 3 7 8 8 Average Carried 5 | . 1 1 2 3 7 7 Final Capacity 8 | 8 8 8 8 8 8 8 Final Carried 7 | 1 1 2 3 7 7 7 Class Distribution -------------------- 96% | Mutant 3% | Scavenger-Mutant Dominant Class ---------------- Mutant | -10/Materials Mutant | -10/Mines Mutant | -10/Exiles Mutant | -9/Mines Mutant | -8/Materials Mutant | -8/Garrison Resources | -11 -10 -10 -10 -9 -8 -8 ----------- Run | Yrd Mat Min Exi Min Mat Gar Matter Collected 572 | 231 . 25 . 34 78 204 Remotely . | . . . . . . . Salvage Created 564 | . . . . 55 135 374 Parts 26 | . . . . 7 13 6 Haulers Intercepted . | . . . . . . . Recyclers Shooed . | . . . . . . . Parts Field Recycled . | . . . . . . . Retrieved Matter . | . . . . . . . Parts Self-Destructed . | . . . . . . . Prevented . | . . . . . . . Parts Restored . | . . . . . . . Kills | -11 -10 -10 -10 -9 -8 -8 ------- Run | Yrd Mat Min Exi Min Mat Gar Combat Hostiles Destroyed 14 | . . . . 4 2 8 Melee 4 | . . . . . 1 3 Guns 5 | . . . . 4 1 . Classes Destroyed 6 | . . . . 1 3 2 Mechanic 1 | . . . . . 1 . Watcher 1 | . . . . . 1 . Swarmer 4 | . . . . 4 . . Grunt 4 | . . . . . . 4 Duelist 1 | . . . . . . 1 Sentry 5 | . . . . . 2 3 Best Kill Streak 4 | . . . . 4 2 2 Combat Bots Only 4 | . . . . 4 1 2 Max Kills in Single Turn 1 | . . . . 1 1 1 Gunslinging . | . . . . . . . Exploded . | . . . . . . . Melee 1 | . . . . . 1 1 Uniques/NPCs Destroyed . | . . . . . . . Combat | -11 -10 -10 -10 -9 -8 -8 -------- Run | Yrd Mat Min Exi Min Mat Gar Hostile Shots Fired 132 | . . . . 22 12 98 Missed 35 | . . . . 7 2 26 Hits 97 | . . . . 15 10 72 Melee 1 | . . . . . . 1 Projectile 96 | . . . . 15 10 71 Critical Strikes 6 | . . . . . 1 5 Damage Taken 1351 | . . . . 115 239 997 Core 440 | . . . . 45 90 305 Absorbed by Shields . | . . . . . . . Core Remaining (%) 91 | 100 . . . 82 . . Volleys Fired 14 | . . . . 8 6 . Largest 2 | . . . . 2 2 . Hottest 70 | . . . . 70 48 . Shots Fired 28 | . . . . 16 12 . Gun 28 | . . . . 16 12 . Cannon . | . . . . . . . Launcher . | . . . . . . . Special . | . . . . . . . Kinetic 20 | . . . . 8 12 . Thermal 8 | . . . . 8 . . Explosive . | . . . . . . . Electromagnetic . | . . . . . . . Robot Hit Streak 5 | . . . . 4 5 . Robot Miss Streak 3 | . . . . 3 2 . Penetration Max . | . . . . . . . Secondary Targets 3 | . . . . 3 . . Max Gunslinging Chain 1 | . . . . 1 . . Shots Hit Robots 50 | . . . . 7 13 30 Core Hits 14 | . . . . 5 5 4 Critical Kills . | . . . . . . . Critical Parts Destroyed 7 | . . . . . . 7 Critical Strikes 7 | . . . . . . 7 Smash 7 | . . . . . . 7 Melee Attacks 85 | . . . . . 6 79 Impact 85 | . . . . . 6 79 Slashing . | . . . . . . . Piercing . | . . . . . . . Sneak Attacks 1 | . . . . . 1 . Combat Hostiles . | . . . . . . . Follow-up Attacks . | . . . . . . . Damage Inflicted 1206 | 3 . . . 92 298 813 Guns 251 | . . . . 90 161 . Cannons . | . . . . . . . Explosions . | . . . . . . . Melee 950 | . . . . . 137 813 Ramming 5 | 3 . . . 2 . . Kinetic 189 | . . . . 28 161 . Thermal 62 | . . . . 62 . . Explosive . | . . . . . . . Electromagnetic . | . . . . . . . Impact 950 | . . . . . 137 813 Slashing . | . . . . . . . Piercing . | . . . . . . . Highest Corruption . | . . . . . . . Average Corruption . | . . . . . . . Corruption Purged . | . . . . . . . Corruption Blocked . | . . . . . . . Overload Shots . | . . . . . . . Overflow Damage 263 | . . . . . 25 238 Projectiles . | . . . . . . . Explosions . | . . . . . . . Melee 263 | . . . . . 25 238 Knockbacks 2 | . . . . . . 2 Impact 2 | . . . . . . 2 Kinetic . | . . . . . . . Secondary . | . . . . . . . Self-Inflicted Damage . | . . . . . . . Shots . | . . . . . . . Rammed . | . . . . . . . Targets Rammed 2 | 1 . . . 1 . . Kicked 2 | 1 . . . 1 . . Crushed . | . . . . . . . Highest Temperature 72 | . . . . 72 . . Average Temperature 37 | . . . . 37 . . Received Heat Transfer 477 | . . . . . 54 423 Siege Activations . | . . . . . . . Martial Activations . | . . . . . . . Shielding Activations . | . . . . . . . Robots Disrupted . | . . . . . . . Combat Hostiles . | . . . . . . . Robots Corrupted 6 | . . . . . 1 5 Combat Hostiles 5 | . . . . . . 5 Parts Fried 5 | . . . . . 1 4 Impact Corruptions 10 | . . . . . 1 9 Robots Melted . | . . . . . . . Combat Hostiles . | . . . . . . . Parts Melted . | . . . . . . . Heat Transferred 185 | . . . . 185 . . Parts Sabotaged . | . . . . . . . Parts Stolen . | . . . . . . . Parts Stripped . | . . . . . . . Power Chain Reactions . | . . . . . . . Alert | -11 -10 -10 -10 -9 -8 -8 ------- Run | Yrd Mat Min Exi Min Mat Gar Maximum Alert Level 1 | . . . . . . 1 Low Security (%) 89 | 100 100 100 . 100 100 73 Level 1 10 | . . . . . . 26 Level 2 . | . . . . . . . Level 3 . | . . . . . . . Level 4 . | . . . . . . . Level 5 . | . . . . . . . High Security . | . . . . . . . Max Security . | . . . . . . . Peak Influence 278 | . . . . 80 37 278 Initial 1 | . . . . . . 1 Average 56 | . . . . 26 10 124 Influence Increases 525 | . . . . 90 118 317 Destroy 0b10 Robot/C 280 | . . . . 80 40 160 Destroy 0b10 Robot/NC 10 | . . . . . 10 . Destroy Leader 42 | . . . . 10 22 10 Successful Hack 29 | . . . . . 29 . Anti-Garrison Action 50 | . . . . . . 50 Destroy Structure 39 | . . . . . 2 37 Lose Combat Pursuer 75 | . . . . . 15 60 Influence Decreases 277 | . . . . 90 116 71 Entered New Map 1 | . . . . . . 1 Time Decay 196 | . . . . 90 106 . Lost Part 80 | . . . . . 10 70 Squads Dispatched . | . . . . . . . Investigation . | . . . . . . . Extermination . | . . . . . . . Reinforcement . | . . . . . . . Assault . | . . . . . . . Garrison . | . . . . . . . Intercept . | . . . . . . . Searches Triggered . | . . . . . . . Construction Impeded . | . . . . . . . Haulers Reinforced . | . . . . . . . Active Scanning Responses . | . . . . . . . Cargo Convoy Interrupts . | . . . . . . . Stealth | -11 -10 -10 -10 -9 -8 -8 --------- Run | Yrd Mat Min Exi Min Mat Gar Distress Signals . | . . . . . . . Communications Jammed . | . . . . . . . Distress Signals . | . . . . . . . Times Spotted 25 | . . . . 4 4 17 Peak Tracking Total 7 | . . . . 4 2 7 Tactical Retreats 5 | . . . . . 1 4 Traps | -11 -10 -10 -10 -9 -8 -8 ------- Run | Yrd Mat Min Exi Min Mat Gar Traps Triggered . | . . . . . . . Indirectly . | . . . . . . . Trap Hack Attempts . | . . . . . . . Triggered . | . . . . . . . Disarmed . | . . . . . . . Reprogrammed . | . . . . . . . Reused . | . . . . . . . Traps Extracted . | . . . . . . . Installed . | . . . . . . . Triggered . | . . . . . . . Machines | -11 -10 -10 -10 -9 -8 -8 ---------- Run | Yrd Mat Min Exi Min Mat Gar Machines Disabled 1 | . . . . . . 1 Max in Single Turn 1 | . . . . . . 1 Garrison Relay 1 | . . . . . . 1 Machines Repaired . | . . . . . . . Machines Dismantled . | . . . . . . . Machines Sabotaged . | . . . . . . . Overloaded Fab Kills . | . . . . . . . Hacking | -11 -10 -10 -10 -9 -8 -8 --------- Run | Yrd Mat Min Exi Min Mat Gar Machines Accessed 12 | . . . 4 . 7 1 Terminals 6 | . . . . . 5 1 Fabricators . | . . . . . . . Repair Stations . | . . . . . . . Recycling Units 1 | . . . . . 1 . Scanalyzers . | . . . . . . . Garrison Access 1 | . . . . . 1 . Total Hacks 49 | . . . 27 . 20 2 Successful 37 | . . . 27 . 10 . Failed 12 | . . . . . 10 2 Catastrophic 3 | . . . . . 2 1 Database Lockouts . | . . . . . . . Manual 15 | . . . 1 . 14 . Terminals 20 | . . . . . 18 2 Fabricators . | . . . . . . . Repair Stations . | . . . . . . . Recycling Units 1 | . . . . . 1 . Scanalyzers . | . . . . . . . Garrison Access 1 | . . . . . 1 . Terminal Hacks 31 | . . . 27 . 4 . Record 26 | . . . 26 . . . Part Schematic 2 | . . . . . 2 . Level Access Points 1 | . . . . . 1 . Locate Traps 1 | . . . . . 1 . Proto ID Catalog 1 | . . . 1 . . . Fabricator Hacks . | . . . . . . . Repair Station Hacks . | . . . . . . . Recycling Unit Hacks 1 | . . . . . 1 . Retrieve Components 1 | . . . . . 1 . Scanalyzer . | . . . . . . . Garrison Access Hacks 1 | . . . . . 1 . Unlock Access 1 | . . . . . 1 . Unauthorized Hacks 4 | . . . . . 4 . Terminals 4 | . . . . . 4 . Botnet 4 | . . . . . 4 . Fabricators . | . . . . . . . Repair Stations . | . . . . . . . Recycling Units . | . . . . . . . Scanalyzers . | . . . . . . . Garrison Access . | . . . . . . . Data Cores Recovered . | . . . . . . . Used . | . . . . . . . Hacking Detections 6 | . . . . . 5 1 Full Trace Events . | . . . . . . . Feedback Events . | . . . . . . . Feedback Blocked . | . . . . . . . Robot Schematics Acquired . | . . . . . . . Robots Built . | . . . . . . . Authchips . | . . . . . . . Time . | . . . . . . . Total Robot Build Rating . | . . . . . . . Part Schematics Acquired 2 | . . . . . 2 . Parts Built . | . . . . . . . Authchips . | . . . . . . . Time . | . . . . . . . Total Part Build Rating . | . . . . . . . Part Studies Acquired . | . . . . . . . Parts Repaired . | . . . . . . . Time . | . . . . . . . Parts Recycled . | . . . . . . . Recycled Matter . | . . . . . . . Retrieved Matter . | . . . . . . . Retrieved Components 2 | . . . . . 2 . Parts Scanalyzed . | . . . . . . . Part Schematics Acquired . | . . . . . . . Parts Damaged . | . . . . . . . Bothacking | -11 -10 -10 -10 -9 -8 -8 ------------ Run | Yrd Mat Min Exi Min Mat Gar Used RIF Installer . | . . . . . . . Robots Hacked . | . . . . . . . Non-combat . | . . . . . . . Combat . | . . . . . . . Robot Hacks Applied . | . . . . . . . Relay Couplers Released 3 | . . . . . . 3 Machine Destruction 3 | . . . . . . 3 Fabnet Peak Effective % . | . . . . . . . Robots Rewired . | . . . . . . . Allies Hacked . | . . . . . . . Hacks Repelled . | . . . . . . . Allies | -11 -10 -10 -10 -9 -8 -8 -------- Run | Yrd Mat Min Exi Min Mat Gar Total Allies . | . . . . . . . Largest Group . | . . . . . . . Highest-Rated Group . | . . . . . . . Highest-Rated Ally . | . . . . . . . Total Orders . | . . . . . . . Ally Attacks . | . . . . . . . Total Damage . | . . . . . . . Kills . | . . . . . . . Allies Corrupted . | . . . . . . . Allies Melted . | . . . . . . . Intel | -11 -10 -10 -10 -9 -8 -8 ------- Run | Yrd Mat Min Exi Min Mat Gar Active Infowar (turns) . | . . . . . . . Robot Analysis Total . | . . . . . . . Derelict Logs Recovered 2 | . . 2 . . . . Drone Launches . | . . . . . . . Drone Recoveries . | . . . . . . . Exploration | -11 -10 -10 -10 -9 -8 -8 ------------- Run | Yrd Mat Min Exi Min Mat Gar Turns Passed 2012 | 52 4 121 556 271 445 563 Spaces Moved 1219 | 37 4 101 463 195 200 219 Core 4 | 4 . . . . . . Treads . | . . . . . . . Legs 1214 | 33 4 101 463 195 200 218 Wheels . | . . . . . . . Hover . | . . . . . . . Flight 1 | . . . . . . 1 Fastest Speed 50 | 50 120 120 120 120 120 120 Average Speed 121 | 112 120 120 120 120 133 120 Slowest Speed 190 | 120 120 120 120 120 190 175 Overloaded Moves . | . . . . . . . Propulsion Burnouts . | . . . . . . . Robots Hopped . | . . . . . . . Potential Cave-ins . | . . . . . . . Cave-ins Triggered . | . . . . . . . Exploration Rate (%) 30 | 3 5 29 89 46 23 20 Regions Visited 6 Branch Regions 3 Pre-discovered Areas 1 | . . 1 . . . . Known Exits Taken 1 | . . . . . 1 . Unknown Exits Taken 5 | 1 1 1 1 1 . . Scrap Searched 2 | . . 1 . 1 . . Spaces Dug 15 | . . . . . 2 13 Terrain Destroyed 15 | . . . . . 2 13 Melee 15 | . . . . . 2 13 Projectile . | . . . . . . . AOE . | . . . . . . . Terrain Rammed . | . . . . . . . Walls Destroyed . | . . . . . . . Machines Disabled . | . . . . . . . Actions | -11 -10 -10 -10 -9 -8 -8 --------- Run | Yrd Mat Min Exi Min Mat Gar Total 1560 | 44 3 101 463 216 354 379 Wait 205 | . . . . 8 123 74 Move 1214 | 36 3 100 462 194 200 219 Hop . | . . . . . . . Pick Up 10 | 1 . 1 1 4 2 1 Fast Attach 14 | 6 . . . . 5 3 Attach 3 | . . . . 1 1 1 Detach 1 | . . . . . 1 . Swap 5 | . . . . . 5 . Drop 7 | . . . . . 5 2 Fire 14 | . . . . 8 6 . Melee 85 | . . . . . 6 79 Ram . | . . . . . . . Kick 2 | 1 . . . 1 . . Crush . | . . . . . . . Escape Stasis . | . . . . . . . Rewire . | . . . . . . . Trap . | . . . . . . . Miscellaneous . | . . . . . . . Route ------- -11/Scrapyard -10/Materials -10/Mines -10/Exiles -9/Mines -8/Materials (discovered 5 exits: Fac x3 / Sto / Gar) -8/Garrison History --------- Turn | Location | Event 3 | -11/Scrapyard | Discovered new exit (range 15) 53 | -11/Scrapyard | Entered Materials 55 | -10/Materials | Discovered new exit (range 3) 57 | -10/Materials | Entered Mines 71 | -10/Mines | Learned location of Storage (-8) 168 | -10/Mines | Learned 2 Materials zone layouts 174 | -10/Mines | Deemed a non-threat by the Exiles lab entrance 174 | -10/Mines | Discovered new exit (range 5) 178 | -10/Mines | Entered Exiles 207 | -10/Exiles | Met 8R-AWN 228 | -10/Exiles | Met EX-HEX 278 | -10/Exiles | Met EX-BIN 295 | -10/Exiles | Aligned with FarCom system 296 | -10/Exiles | Given EX-Vault access code 301 | -10/Exiles | Build established: Mutant 324 | -10/Exiles | Opened EX-Vault 369 | -10/Exiles | Warned to stay clear of 0b10 Research branches 417 | -10/Exiles | Found Longsword +1 473 | -10/Exiles | Met EX-DEC 562 | -10/Exiles | Visited The Gauntlet 719 | -10/Exiles | Discovered new exit (range 14) 734 | -10/Exiles | Left Exiles lab with Longsword +1 734 | -10/Exiles | Entered Mines 913 | -9/Mines | Found a Scrap Suit stashed away for nefarious purposes 916 | -9/Mines | Found Scrap Suit 968 | -9/Mines | Discovered new exit (range 10) 1005 | -9/Mines | Entered Materials 1005 | -8/Materials | Evolved 4 slots: Propulsion x2, Utility x2 1006 | -8/Materials | Identified exit to Factory 1006 | -8/Materials | Identified exit to Storage 1450 | -8/Materials | Identified exit to Garrison 1450 | -8/Materials | Entered Garrison 1644 | -8/Garrison | Triggered checkpoint 1710 | -8/Garrison | Garrison Relay disabled 1990 | -8/Garrison | Triggered checkpoint 2001 | -8/Garrison | Core integrity fell below 50% 2013 | -8/Garrison | Self-destructed Last Messages --------------- 01949_ Acquired Imp. VTOL Module. 01950_ Acquired 10 matter. 01990_ Beams of light sweep through the air. An alarm sounds. 01994_ Critical hit (Burn: +37). 01999_ Aluminum Leg destroyed. Garrison Door activated. 02002_ Lgt. Treads destroyed. 02003_ Y-45 Defender suffers critical hit (Smash). 02003_ Destroyed Hvy. Assault Rifle. 02003_ Y-45 Defender system corrupted by crushing effect. 02003_ Aluminum Leg destroyed. 02003_ Heat Sink destroyed. 02004_ Y-45 Defender system terminally corrupted. 02004_ Beam Rifle fried. 02006_ Critical hit (Burn: +37). 02009_ Heat Sink destroyed. Map ----- +----------------------------------------------------+ | ?????????????????????????????????????## # #?????? | | ?????????????????????????????????????# #?????? | | ?????????????????????????????????????# ##?????? | | ??????????????????????????????????????# #?????? | | ??????????????????????????????????????### ##?????? | | ????????????????????????????????????????# "#?????? | | ????????????????????????????????#####???# #?####?? | | ????????????????????????????????# #???# #?# #?? | | ?????????????????????????######## ##### ### "?? | | ?????????????????????????# "= %T#?? | | ?????????????????????????## !!######"#### ######?? | | ?????????????????????????#"" ""#???# #??# #??????? | | ?????????????????????????#######???# #??# #???#### | | ???????????????????????????????????# #??# #???# | | ???????????????????????????????????# #### ##### | | ???????????????????????????????????# " | | ???????????????????????????????????#### | | ??????????????????????????????????????# ######### | | ??????????????????????????????????????# #???????? | | ??????????????????????????????????????# #???????? | | ?????????????????????????????###??????#= ##??????? | | ???????????????????????????###"########%%"#??????? | | ???????????????????????????#" " ##??????? | | ???????????????????????????#" ######### "#??????? | | ?????????????????????######## #???????# ##??????? | | ?????????????????????# s%@#?# #???????# ##??????? | | ?????????????????##### Y!s###"##??????#% "#??????? | | ??????????? s ######## ##??????? | | ?????????? s ^ "#??????? | | ??????????? ^ "#??????? | | ???????????###### ## ## ###""#"#####??????? | | ????????????????# ??# ## #?# ####??????????? | | ???????????????x" ?? ###?????????????? | | ???????????????x"? #???????????????? | | ????????????????? #???????????????? | | ????????????????" #???????????????? | | ????????????????# ## ## ###???????????????? | | ????????????????# ?# ?# #?????????????????? | | ????????????????# ? ? ?????????????????? | | ????????????????? ?? ? ?????????????????? | | ???????????????????? ?????????????????? | | ??????????????????????""""######?????????????????? | | ???????????????????????ggg???????????????????????? | | ?????????????????????????????????????????????????? | | ?????????????????????????????????????????????????? | | ?????????????????????????????????????????????????? | | ?????????????????????????????????????????????????? | | ?????????????????????????????????????????????????? | | ?????????????????????????????????????????????????? | | ?????????????????????????????????????????????????? | +----------------------------------------------------+ Best States ------------- Heat Dissipation 51 Energy Generation 14 Energy Capacity 275 Matter Stores 300 Matter Capacity 300 Sight Range 16 Terrain Scan Density 10 Evasion (%) 55 Item Schematics ----------------- Hacking Suite | -8/Materials | Hacked System Shield | -8/Materials | Hacked Robot Schematics ------------------ None Fabricated ------------ Nothing Repaired ---------- Nothing Studied --------- None Alien Tech Used ----------------- None Achievements -------------- Sixth Sense Challenges ------------ None Game ------ Seed NullSensorShield Manual? 0 Play Time 00:33:30 Cumulative 65.2 hours Start 2025.12.03 @ 17:50:05 End 2025.12.03 @ 18:24:42 Sessions 1 Manual Loads 0 Difficulty Rogue Special Mode None Game No. 42 Rogue 42 Adventurer 0 Explorer 0 Win Type - Total 0 Types 0/0/0/0/0/0/0/0/0/0 Lore% 23 Gallery% 32 Achievement% 26 Wizard Run 0 Options --------- Layout 1 ASCII 0 Keyboard 0 Movement Numpad Keybinds 0 Fullscreen 1 Font 24/Smallcaps Map View 50x35 Zoom Use 0% Tactical HUD 1 Map Filters NONE Filters NONE Steam 1 RUN: 9a32d86f-8764-49a1-809b-97ccdfba62ba